fUST/lending_fUST_20250122
["ID","MTS","AMOUNT","RATE_DAILY","PERIOD"]
[349924026,1737505839847,-500.0,0.00021917,3]
[349924027,1737505839856,-500.0,0.00021917,3]
[349924028,1737505839866,-500.0,0.00021917,3]
[349924029,1737505839876,-500.0,0.00021917,3]
[349924030,1737505839890,-501.9273105,0.00021917,3]
[349924031,1737505839899,-500.0,0.00021917,3]
[349924032,1737505839909,-500.0,0.00021917,3]
[349924033,1737505839919,-500.0,0.00021917,3]
[349924034,1737505839928,-632.65,0.00021917,3]
[349924035,1737505839938,-502.36238528,0.00021917,3]
[349924036,1737505839947,-500.0,0.00021917,3]
[349924037,1737505839956,-500.0,0.00021917,3]
[349924038,1737505839966,-500.0,0.00021917,3]
[349924039,1737505839975,-934.71,0.00021917,3]
[349924040,1737505839985,-500.0,0.00021917,3]
[349924041,1737505839995,-500.0,0.00021917,3]
[349924042,1737505840004,-500.0,0.00021917,3]
[349924043,1737505840014,-1068.86,0.00021917,3]
[349924044,1737505840023,-500.0,0.00021917,3]
[349924045,1737505840033,-515.19417627,0.00021917,3]
[349924046,1737505840042,-500.0,0.00021917,3]
[349924047,1737505840052,-442.25102514,0.00021917,3]
[349924048,1737505840061,-524.52,0.00021917,3]
[349924049,1737505840071,-1164.16,0.00021917,3]
[349924050,1737505840080,-500.0,0.00021917,3]
[349924051,1737505840090,-500.0,0.00021917,3]
[349924052,1737505840099,-500.0,0.00021917,3]
[349924053,1737505840109,-500.0,0.00021917,3]
[349924054,1737505840118,-500.0,0.00021917,3]
[349924055,1737505840130,-500.0,0.00021917,3]
[349924056,1737505840139,-500.0,0.00021917,3]
[349924057,1737505840148,-500.0,0.00021917,3]
[349924058,1737505840158,-500.0,0.00021917,3]
[349924059,1737505840168,-500.0,0.00021917,3]
[349924060,1737505840177,-500.0,0.00021917,3]
[349924061,1737505840187,-500.0,0.00021917,3]
[349924062,1737505840196,-500.0,0.00021917,3]
[349924063,1737505840206,-327.82679629,0.00021917,3]
[349924065,1737505840215,-500.0,0.00021917,3]
[349924067,1737505840224,-768.55,0.00021917,3]
[349924068,1737505840233,-500.0,0.00021917,3]
[349924070,1737505840242,-500.0,0.00021917,3]
[349924072,1737505840252,-500.0,0.00021917,3]
[349924074,1737505840264,-502.73923988,0.00021917,3]
[349924076,1737505840273,-500.0,0.00021917,3]
[349924078,1737505840282,-620.54,0.00021917,3]
[349924079,1737505840291,-500.0,0.00021917,3]
[349924081,1737505840301,-500.0,0.00021917,3]
[349924082,1737505840310,-500.0,0.00021917,3]
[349924084,1737505840320,-500.0,0.00021917,3]
[349924086,1737505840329,-500.0,0.00021917,3]
[349924088,1737505840340,-500.0,0.00021917,3]
[349924090,1737505840356,-500.0,0.00021917,3]
[349924092,1737505840365,-500.0,0.00021917,3]
[349924095,1737505840375,-715.72,0.00021917,3]
[349924096,1737505840386,-500.0,0.00021917,3]
[349924098,1737505840395,-500.0,0.00021917,3]
[349924100,1737505840405,-500.0,0.00021917,3]
[349924102,1737505840415,-500.0,0.00021917,3]
[349924105,1737505840424,-500.0,0.00021917,3]
[349924107,1737505840434,-500.0,0.00021917,3]
[349924109,1737505840444,-292.25157072,0.00021917,3]
[349924111,1737505840453,-500.0,0.00021917,3]
[349924113,1737505840463,-500.0,0.00021917,3]
[349924115,1737505840472,-500.0,0.00021917,3]
[349924117,1737505840481,-500.0,0.00021917,3]
[349924127,1737505840568,-500.0,0.00021917,3]
[349924129,1737505840577,-500.0,0.00021917,3]
[349924131,1737505840587,-500.0,0.00021917,3]
[349924133,1737505840597,-869.18,0.00021917,3]
[349924135,1737505840606,-500.0,0.00021917,3]
[349924137,1737505840615,-500.0,0.00021917,3]
[349924139,1737505840624,-500.0,0.00021917,3]
[349924141,1737505840637,-2203.6,0.00021917,3]
[349924143,1737505840647,-500.0,0.00021917,3]
[349924145,1737505840656,-500.0,0.00021917,3]
[349924147,1737505840666,-1570.58,0.00021917,2]
[349924149,1737505840675,-500.0,0.00021917,3]
[349924151,1737505840684,-501.97707428,0.00021917,3]
[349924153,1737505840694,-506.57,0.00021917,3]
[349924155,1737505840704,-2688.57,0.00021917,3]
[349924157,1737505840714,-500.0,0.00021917,3]
[349924159,1737505840723,-1143.95,0.00021917,3]
[349924161,1737505840733,-500.0,0.00021917,3]
[349924163,1737505840742,-500.0,0.00021917,3]
[349924165,1737505840751,-500.0,0.00021917,3]
[349924167,1737505840760,-500.0,0.00021917,3]
[349924168,1737505840769,-500.0,0.00021917,3]
[349924170,1737505840779,-500.0,0.00021917,3]
[349924172,1737505840788,-503.34240989,0.00021917,3]
[349924173,1737505840797,-501.12991403,0.00021917,3]
[349924175,1737505840807,-500.0,0.00021917,3]
[349924177,1737505840817,-96.0084132,0.00021917,3]
[349924268,1737506599767,161.382544,0.00013973,2]
[349924269,1737506839454,6600.35193347,0.0002,10]
[349924301,1737507032606,-316.97830599,0.000189,2]
[349924302,1737507032615,-174.236889,0.00020283,2]
[349924303,1737507032627,-630.553402,0.00020894,2]
[349924304,1737507032637,-238.726,0.0002095,2]
[349924305,1737507032646,-159.881321,0.00020971,7]
[349924306,1737507032655,-159.881321,0.00020971,2]
[349924307,1737507032665,-159.881321,0.00021168,4]
[349924308,1737507032674,-416.0,0.000214,9]
[349924309,1737507032683,-78.60920474,0.00021468,2]
[349924310,1737507032695,-221.39079526,0.00021468,2]
[349924311,1737507032706,-150.0,0.0002147,2]
[349924312,1737507032716,-2063.0,0.0002147,2]
[349924313,1737507032726,-536.0,0.0002147,2]
[349924314,1737507032735,-2307.0,0.0002147,2]
[349924315,1737507032744,-159.881321,0.00021509,14]
[349924316,1737507032754,-1200.0,0.0002167,2]
[349924317,1737507032763,-299.59438436,0.00021745,2]
[349924357,1737507038296,-150.0,0.0002147,2]
[349924359,1737507038306,-395.0,0.0002147,2]
[349924361,1737507038315,-917.17,0.000218,2]
[349924363,1737507038324,-163.40667111,0.00021817,2]
[349924365,1737507038334,-284.20237839,0.00021817,2]
[349924367,1737507038343,-6204.16440295,0.00021856,2]
[349924369,1737507038358,-517.5299952,0.00021856,2]
[349924371,1737507038369,-4155.93056681,0.00021856,2]
[349924373,1737507038378,-163.40667111,0.00021886,2]
[349924375,1737507038387,-152.0,0.00021893,2]
[349924377,1737507038397,-59.91452588,0.00021916,2]
[349924380,1737507038408,-440.08547412,0.00021916,2]
[349924381,1737507038418,-500.0,0.00021916,2]
[349924384,1737507038428,-500.0,0.00021916,2]
[349924386,1737507038438,-500.0,0.00021916,2]
[349924388,1737507038447,-426.24098379,0.00021916,2]
[349924390,1737507038456,-500.0,0.00021916,2]
[349924392,1737507038465,-163.18945706,0.00021916,2]
[349924393,1737507038476,-500.0,0.00021916,2]
[349924395,1737507038485,-172.293446,0.00021916,2]
[349924397,1737507038494,-470.31054312,0.00021916,2]
[349924399,1737507038503,-953.90704186,0.00021917,5]
[349924401,1737507038513,-267.18988378,0.00021917,5]
[349924404,1737507038523,-500.00762011,0.00021917,2]
[349924406,1737507038532,-500.0,0.00021917,3]
[349924408,1737507038542,-500.0,0.00021917,3]
[349924409,1737507038551,-500.0,0.00021917,3]
[349924412,1737507038560,-500.0,0.00021917,3]
[349924414,1737507038570,-539.62,0.00021917,3]
[349924415,1737507038579,-500.0,0.00021917,3]
[349924417,1737507038588,-500.0,0.00021917,3]
[349924419,1737507038598,-500.0,0.00021917,3]
[349924421,1737507038607,-500.0,0.00021917,3]
[349924423,1737507038616,-500.0,0.00021917,3]
[349924426,1737507038627,-500.0,0.00021917,3]
[349924428,1737507038638,-500.0,0.00021917,3]
[349924429,1737507038647,-500.0,0.00021917,3]
[349924431,1737507038657,-500.0,0.00021917,3]
[349924433,1737507038667,-500.0,0.00021917,3]
[349924435,1737507038676,-500.0,0.00021917,3]
[349924437,1737507038685,-500.0,0.00021917,3]
[349924439,1737507038695,-500.0,0.00021917,3]
[349924441,1737507038706,-500.0,0.00021917,3]
[349924443,1737507038716,-500.0,0.00021917,3]
[349924445,1737507038727,-502.75232034,0.00021917,3]
[349924447,1737507038736,-500.0,0.00021917,3]
[349924449,1737507038746,-500.0,0.00021917,3]
[349924451,1737507038755,-149.34093939,0.00021917,3]
[349924453,1737507038768,-350.65906061,0.00021917,3]
[349924455,1737507038778,-500.0,0.00021917,3]
[349924457,1737507038788,-388.08559546,0.00021917,3]
[349924459,1737507038800,-114.57440454,0.00021917,3]
[349924461,1737507038809,-500.0,0.00021917,3]
[349924463,1737507038819,-594.69,0.00021917,3]
[349924465,1737507038828,-500.0,0.00021917,3]
[349924467,1737507038837,-500.0,0.00021917,3]
[349924469,1737507038847,-500.0,0.00021917,3]
[349924471,1737507038856,-376.76493529,0.00021917,3]
[349924622,1737507040570,-125.17539816,0.00021917,3]
[349924624,1737507040579,-500.0,0.00021917,3]
[349924626,1737507040588,-222.77625418,0.00021917,3]
[349924793,1737507046492,-150.0,0.0002147,2]
[349924794,1737507046502,-277.22374582,0.00021917,3]
[349924795,1737507046512,-14.0858373,0.00021917,3]
[349924796,1737507046544,-485.9141627,0.00021917,3]
[349924797,1737507046554,-208.54312881,0.00021917,3]
[349924798,1737507046563,-500.0,0.00021917,3]
[349924799,1737507046573,-500.0,0.00021917,3]
[349924800,1737507046582,-500.0,0.00021917,3]
[349924801,1737507046592,-500.0,0.00021917,3]
[349924802,1737507046601,-500.0,0.00021917,3]
[349924803,1737507046610,-133.2427085,0.00021917,3]
[349924811,1737507640497,161.58814,0.00013973,2]
[349924905,1737508232952,-386.60807608,0.000189,2]
[349924907,1737508232962,-210.00999472,0.00019817,2]
[349924918,1737508233077,-740.51154546,0.0002061,2]
[349924920,1737508233089,-1052.48845454,0.0002061,2]
[349924922,1737508233103,-150.0,0.00020675,2]
[349924924,1737508233115,-395.0,0.00020675,2]
[349924926,1737508233126,-228.765,0.0002095,2]
[349924928,1737508233136,-1405.670698,0.000214,2]
[349924930,1737508233145,-395.0,0.000214,9]
[349924932,1737508233155,-150.0,0.0002147,2]
[349924935,1737508233165,-150.0,0.0002147,2]
[349924938,1737508233176,-150.0,0.0002147,2]
[349924941,1737508233185,-153.76,0.00021631,2]
[349924944,1737508233196,-1550.1,0.0002167,2]
[349924946,1737508233206,-168.0,0.00021791,2]
[349924948,1737508233215,-825.46,0.000218,2]
[349924950,1737508233225,-300.0,0.00021816,2]
[349924952,1737508233234,-163.40667111,0.00021817,2]
[349924954,1737508233244,-248.6770811,0.00021817,2]
[349924956,1737508233254,-200.0,0.000219,2]
[349924958,1737508233264,-200.0,0.000219,2]
[349924960,1737508233273,-200.0,0.000219,12]
[349924962,1737508233283,-200.0,0.000219,13]
[349924964,1737508233294,-200.0,0.000219,14]
[349924966,1737508233305,-200.0,0.000219,14]
[349924968,1737508233315,-181.24088432,0.000219,15]
[349924970,1737508233325,-150.0,0.000219,5]
[349924972,1737508233335,-2147.22703816,0.000219,2]
[349924974,1737508233344,-5997.66537906,0.000219,3]
[349924976,1737508233353,-418.4109868,0.00021916,2]
[349924978,1737508233363,-153.402,0.00021917,2]
[349924980,1737508233373,-678.78175636,0.00021917,5]
[349924982,1737508233382,-267.18988376,0.00021917,5]
[349924984,1737508233392,-791.63,0.00021917,3]
[349924985,1737508233402,-500.0,0.00021917,3]
[349924987,1737508233412,-603.0,0.00021917,3]
[349924989,1737508233422,-500.0,0.00021917,3]
[349924990,1737508233432,-500.0,0.00021917,3]
[349924992,1737508233441,-500.0,0.00021917,3]
[349924994,1737508233451,-500.0,0.00021917,3]
[349924996,1737508233461,-500.0,0.00021917,3]
[349924998,1737508233470,-500.0,0.00021917,3]
[349925000,1737508233481,-500.0,0.00021917,3]
[349925002,1737508233491,-500.0,0.00021917,3]
[349925004,1737508233502,-500.0,0.00021917,3]
[349925006,1737508233514,-48.54110529,0.00021917,3]
[349925108,1737508238758,-451.45889471,0.00021917,3]
[349925109,1737508238767,-500.0,0.00021917,3]
[349925110,1737508238777,-500.0,0.00021917,3]
[349925111,1737508238786,-500.0,0.00021917,3]
[349925112,1737508238796,-349.24797449,0.00021917,3]
[349925113,1737508238805,-500.0,0.00021917,3]
[349925114,1737508238814,-500.0,0.00021917,3]
[349925115,1737508238823,-500.0,0.00021917,3]
[349925116,1737508238833,-742.05,0.00021917,3]
[349925117,1737508238842,-500.0,0.00021917,3]
[349925118,1737508238852,-500.0,0.00021917,3]
[349925119,1737508238860,-500.0,0.00021917,3]
[349925120,1737508238868,-509.79613844,0.00021917,3]
[349925121,1737508238877,-505.34573248,0.00021917,3]
[349925122,1737508238885,-500.0,0.00021917,3]
[349925123,1737508238893,-500.0,0.00021917,3]
[349925124,1737508238902,-500.0,0.00021917,3]
[349925125,1737508238912,-500.0,0.00021917,3]
[349925126,1737508238921,-500.0,0.00021917,3]
[349925127,1737508238931,-500.0,0.00021917,3]
[349925128,1737508238940,-500.0,0.00021917,3]
[349925129,1737508239044,-500.0,0.00021917,3]
[349925130,1737508239055,-500.0,0.00021917,3]
[349925131,1737508239070,-500.0,0.00021917,3]
[349925132,1737508239081,-507.86082386,0.00021917,3]
[349925133,1737508239101,-500.0,0.00021917,3]
[349925134,1737508239115,-451.95790595,0.00021917,3]
[349925135,1737508239126,-500.0,0.00021917,3]
[349925136,1737508239137,-500.0,0.00021917,3]
[349925137,1737508239147,-500.0,0.00021917,3]
[349925138,1737508239157,-500.0,0.00021917,3]
[349925139,1737508239167,-500.0,0.00021917,3]
[349925140,1737508239177,-500.0,0.00021917,3]
[349925141,1737508239187,-500.0,0.00021917,3]
[349925142,1737508239197,-856.66,0.00021917,3]
[349925143,1737508239207,-352.33601686,0.00021917,3]
[349925144,1737508239217,-761.39518396,0.00021917,2]
[349925591,1737508246750,-6367.40432523,0.00021917,2]
[349925592,1737508246760,-500.0,0.00021917,3]
[349925593,1737508246770,-577.36669696,0.00021917,3]
[349925594,1737508246782,-500.0,0.00021917,3]
[349925595,1737508246792,-240.23129751,0.00021917,3]
[349925596,1737508246801,-695.84,0.00021917,3]
[349925597,1737508246810,-1000.0,0.00021917,3]
[349925598,1737508246820,-500.0,0.00021917,3]
[349925599,1737508246829,-500.0,0.00021917,3]
[349925600,1737508246839,-500.0,0.00021917,3]
[349925601,1737508246848,-500.0,0.00021917,3]
[349925602,1737508246858,-500.0,0.00021917,3]
[349925604,1737508246867,-292.01217859,0.00021917,3]
[349925606,1737508246876,-583.24639814,0.00021917,3]
[349925608,1737508246886,-500.0,0.00021917,3]
[349925610,1737508246895,-286.48828127,0.00021917,3]
[349925613,1737508246918,-213.51171873,0.00021917,3]
[349925616,1737508246928,-500.0,0.00021917,3]
[349925617,1737508246937,-509.09,0.00021917,3]
[349925618,1737508246946,-500.0,0.00021917,3]
[349925619,1737508246956,-216.65048523,0.00021917,3]
[349925620,1737508246965,-500.0,0.00021917,3]
[349925621,1737508246975,-500.0,0.00021917,3]
[349925622,1737508246984,-500.0,0.00021917,3]
[349925623,1737508246994,-500.0,0.00021917,3]
[349925624,1737508247003,-500.0,0.00021917,3]
[349925625,1737508247012,-559.22,0.00021917,3]
[349925626,1737508247116,-500.0,0.00021917,3]
[349925627,1737508247126,-500.0,0.00021917,3]
[349925628,1737508247136,-500.0,0.00021917,3]
[349925629,1737508247146,-500.0,0.00021917,3]
[349925630,1737508247156,-505.54241954,0.00021917,3]
[349925631,1737508247165,-500.0,0.00021917,3]
[349925632,1737508247175,-500.0,0.00021917,3]
[349925633,1737508247184,-500.0,0.00021917,3]
[349925634,1737508247194,-500.0,0.00021917,3]
[349925635,1737508247203,-516.37078833,0.00021917,3]
[349925636,1737508247213,-500.0,0.00021917,3]
[349925637,1737508247223,-500.0,0.00021917,3]
[349925638,1737508247233,-500.0,0.00021917,3]
[349925639,1737508247242,-500.0,0.00021917,3]
[349925640,1737508247252,-500.0,0.00021917,3]
[349925641,1737508247261,-500.0,0.00021917,3]
[349925642,1737508247271,-500.0,0.00021917,3]
[349925643,1737508247282,-889.29,0.00021917,3]
[349925644,1737508247292,-500.0,0.00021917,3]
[349925645,1737508247301,-500.0,0.00021917,3]
[349925646,1737508247311,-500.0,0.00021917,3]
[349925647,1737508247321,-500.0,0.00021917,3]
[349925648,1737508247331,-500.0,0.00021917,3]
[349925649,1737508247340,-1185.0,0.00021917,3]
[349925650,1737508247350,-500.0,0.00021917,3]
[349925651,1737508247359,-500.0,0.00021917,3]
[349925652,1737508247370,-716.03,0.00021917,3]
[349925653,1737508247379,-500.0,0.00021917,3]
[349925654,1737508247388,-500.0,0.00021917,3]
[349925655,1737508247398,-315.53357992,0.00021917,3]
[349925656,1737508247407,-500.0,0.00021917,3]
[349925657,1737508247417,-500.0,0.00021917,3]
[349925658,1737508247427,-500.0,0.00021917,3]
[349925659,1737508247436,-539.35,0.00021917,3]
[349925660,1737508247446,-500.0,0.00021917,3]
[349925661,1737508247456,-1119.41,0.00021917,3]
[349925662,1737508247465,-500.0,0.00021917,3]
[349925663,1737508247474,-500.0,0.00021917,3]
[349925664,1737508247484,-500.0,0.00021917,3]
[349925665,1737508247494,-500.0,0.00021917,3]
[349925666,1737508247503,-269.56001141,0.00021917,3]
[349925667,1737508247512,-500.0,0.00021917,3]
[349925668,1737508247522,-500.0,0.00021917,3]
[349925669,1737508247533,-1158.9,0.00021917,3]
[349925670,1737508247543,-500.0,0.00021917,3]
[349925671,1737508247553,-500.0,0.00021917,3]
[349925672,1737508247563,-500.0,0.00021917,3]
[349925673,1737508247572,-654.1,0.00021917,3]
[349925674,1737508247581,-500.0,0.00021917,3]
[349925675,1737508247592,-911.55,0.00021917,3]
[349925676,1737508247601,-500.0,0.00021917,3]
[349925677,1737508247610,-500.0,0.00021917,3]
[349925678,1737508247619,-500.0,0.00021917,3]
[349925679,1737508247629,-500.0,0.00021917,3]
[349925680,1737508247638,-500.0,0.00021917,3]
[349925681,1737508247647,-500.0,0.00021917,3]
[349925682,1737508247657,-500.0,0.00021917,3]
[349925683,1737508247666,-500.0,0.00021917,3]
[349925684,1737508247676,-793.45,0.00021917,3]
[349925685,1737508247686,-500.0,0.00021917,3]
[349925686,1737508247696,-500.0,0.00021917,3]
[349925687,1737508247706,-500.0,0.00021917,3]
[349925688,1737508247716,-684.14,0.00021917,3]
[349925689,1737508247727,-717.29,0.00021917,3]
[349925690,1737508247738,-606.29,0.00021917,3]
[349925691,1737508247747,-500.0,0.00021917,3]
[349925692,1737508247757,-500.0,0.00021917,3]
[349925693,1737508247766,-497.4119027,0.00021917,3]
[349925694,1737508291956,4735.64,0.00015051,2]
[349925699,1737508741279,161.780887,0.00013973,2]
[349925700,1737509114756,3027.82,0.00018,30]
[349925718,1737509145446,6484.49712669,0.00018,30]
[349925719,1737509145485,1749.14287331,0.00018,30]
[349925723,1737509227091,-257.73871739,0.00019817,2]
[349925724,1737509227114,-219.235,0.0002082,2]
[349925725,1737509227135,-150.0,0.0002147,2]
[349925726,1737509227157,-395.0,0.0002147,2]
[349925727,1737509227178,-742.91,0.000218,2]
[349925728,1737509227202,-5797.7431997,0.000219,3]
[349925729,1737509227225,-300.0,0.00021915,2]
[349925730,1737509227247,-284.16564112,0.00021916,2]
[349925731,1737509227267,-500.0,0.00021916,2]
[349925732,1737509227291,-339.39087818,0.00021917,5]
[349925733,1737509227314,-157.86,0.00021917,2]
[349925734,1737509227335,-165.07866701,0.00021917,3]
[349925735,1737509227357,-500.0,0.00021917,3]
[349925736,1737509227378,-500.0,0.00021917,3]
[349925737,1737509227402,-500.0,0.00021917,3]
[349925738,1737509227422,-500.0,0.00021917,3]
[349925739,1737509227443,-500.0,0.00021917,3]
[349925740,1737509227465,-500.0,0.00021917,3]
[349925741,1737509227487,-500.0,0.00021917,3]
[349925742,1737509227507,-500.0,0.00021917,3]
[349925743,1737509227528,-500.0,0.00021917,3]
[349925744,1737509227550,-500.0,0.00021917,3]
[349925745,1737509227569,-500.0,0.00021917,3]
[349925746,1737509227591,-500.0,0.00021917,3]
[349925747,1737509227616,-509.26485176,0.00021917,3]
[349925748,1737509227638,-233.02777607,0.00021917,3]
[349925749,1737509227659,-500.0,0.00021917,3]
[349925750,1737509227679,-500.0,0.00021917,3]
[349925751,1737509227699,-500.0,0.00021917,3]
[349925752,1737509227719,-500.0,0.00021917,3]
[349925753,1737509227739,-500.0,0.00021917,3]
[349925754,1737509227760,-500.0,0.00021917,3]
[349925755,1737509227780,-500.0,0.00021917,3]
[349925756,1737509227801,-410.15053904,0.00021917,3]
[349925757,1737509227821,-500.0,0.00021917,3]
[349925758,1737509227841,-820.96,0.00021917,3]
[349925759,1737509227862,-500.0,0.00021917,3]
[349925760,1737509227882,-500.0,0.00021917,3]
[349925761,1737509227908,-500.0,0.00021917,3]
[349925762,1737509227930,-500.0,0.00021917,3]
[349925763,1737509227950,-194.22607877,0.00021917,3]
[349925764,1737509227971,-500.0,0.00021917,3]
[349925765,1737509227991,-500.0,0.00021917,3]
[349925766,1737509228014,-666.84,0.00021917,3]
[349925767,1737509228035,-500.0,0.00021917,3]
[349925768,1737509228056,-500.0,0.00021917,3]
[349925769,1737509228076,-500.0,0.00021917,3]
[349925770,1737509228097,-500.0,0.00021917,3]
[349925771,1737509228116,-500.0,0.00021917,3]
[349925772,1737509228139,-341.88223984,0.00021917,3]
[349925773,1737509228161,-500.0,0.00021917,3]
[349925774,1737509228182,-500.0,0.00021917,3]
[349925775,1737509228203,-500.0,0.00021917,3]
[349925776,1737509228223,-500.0,0.00021917,3]
[349925777,1737509228244,-500.0,0.00021917,3]
[349925778,1737509228267,-500.0,0.00021917,3]
[349925779,1737509228289,-500.0,0.00021917,3]
[349925780,1737509228310,-500.0,0.00021917,3]
[349925781,1737509228333,-500.0,0.00021917,3]
[349925782,1737509228357,-500.0,0.00021917,3]
[349925783,1737509228482,-500.0,0.00021917,3]
[349925784,1737509228504,-500.0,0.00021917,3]
[349925785,1737509228528,-500.0,0.00021917,3]
[349925786,1737509228550,-500.0,0.00021917,3]
[349925787,1737509228571,-500.0,0.00021917,3]
[349925788,1737509228592,-500.0,0.00021917,3]
[349925789,1737509228613,-500.0,0.00021917,3]
[349925790,1737509228636,-500.0,0.00021917,3]
[349925791,1737509228658,-1135.1,0.00021917,3]
[349925792,1737509228679,-500.0,0.00021917,3]
[349925793,1737509228700,-1677.0,0.00021917,2]
[349925794,1737509228722,-262.78936139,0.00021917,3]
[349925795,1737509228742,-500.0,0.00021917,3]
[349925796,1737509228765,-1095.69,0.00021917,3]
[349925797,1737509228786,-500.0,0.00021917,3]
[349925798,1737509228808,-500.0,0.00021917,3]
[349925799,1737509228829,-187.7885143,0.00021917,3]
[349925800,1737509228850,-500.0,0.00021917,3]
[349925801,1737509228872,-500.0,0.00021917,3]
[349925802,1737509228895,-184.44258533,0.00021917,3]
[349925803,1737509228917,-500.0,0.00021917,3]
[349925804,1737509228939,-500.0,0.00021917,3]
[349925805,1737509228963,-500.0,0.00021917,3]
[349925806,1737509228985,-500.0,0.00021917,3]
[349925807,1737509229008,-500.0,0.00021917,3]
[349925808,1737509229029,-500.0,0.00021917,3]
[349925809,1737509229052,-500.0,0.00021917,3]
[349925810,1737509229073,-500.0,0.00021917,3]
[349925811,1737509229095,-500.0,0.00021917,3]
[349925812,1737509229117,-500.0,0.00021917,3]
[349925813,1737509229140,-500.0,0.00021917,3]
[349925814,1737509229161,-500.0,0.00021917,3]
[349925815,1737509229183,-500.0,0.00021917,3]
[349925816,1737509229205,-500.0,0.00021917,3]
[349925817,1737509229227,-500.0,0.00021917,3]
[349925818,1737509229248,-500.0,0.00021917,3]
[349925819,1737509229270,-500.0,0.00021917,3]
[349925820,1737509229292,-500.0,0.00021917,3]
[349925821,1737509229317,-150.0,0.00021917,3]
[349925822,1737509229338,-500.0,0.00021917,3]
[349925823,1737509229361,-500.0,0.00021917,3]
[349925824,1737509229382,-165.90112319,0.00021917,3]
[349925825,1737509229408,-500.0,0.00021917,3]
[349925826,1737509229429,-500.0,0.00021917,3]
[349925827,1737509229452,-500.0,0.00021917,3]
[349925828,1737509229474,-500.0,0.00021917,3]
[349925829,1737509229495,-204.9753616,0.00021917,3]
[349925830,1737509229516,-729.87,0.00021917,3]
[349925831,1737509229538,-500.0,0.00021917,3]
[349925832,1737509229560,-500.0,0.00021917,3]
[349925833,1737509229582,-500.0,0.00021917,3]
[349925834,1737509229605,-500.0,0.00021917,3]
[349925835,1737509229627,-500.0,0.00021917,3]
[349925836,1737509229649,-500.0,0.00021917,3]
[349925837,1737509229675,-500.0,0.00021917,3]
[349925838,1737509229700,-500.0,0.00021917,3]
[349925839,1737509229722,-216.6405302,0.00021917,3]
[349925840,1737509229743,-500.0,0.00021917,3]
[349925841,1737509229765,-500.0,0.00021917,3]
[349925842,1737509229787,-500.0,0.00021917,3]
[349925843,1737509229809,-500.0,0.00021917,3]
[349925844,1737509229830,-500.0,0.00021917,3]
[349925845,1737509229853,-629.84501141,0.00021917,3]
[349925846,1737509229875,-500.0,0.00021917,3]
[349925847,1737509229896,-500.0,0.00021917,3]
[349925848,1737509229916,-695.83,0.00021917,3]
[349925849,1737509229938,-500.0,0.00021917,3]
[349925850,1737509229959,-500.0,0.00021917,3]
[349925851,1737509229981,-500.0,0.00021917,3]
[349925852,1737509230003,-500.0,0.00021917,3]
[349925853,1737509230025,-500.0,0.00021917,3]
[349925854,1737509230046,-500.0,0.00021917,3]